Cogmind - Beta 16.1 @@@ ROGUE MODE // 2026.02.12 @ 23:49:12 Player: FISH Result: Destroyed by D-53 Grenadier with Mini Grenade Launcher Performance ------------- Evolutions (0) 0 Regions Visited (2) 400 Robots Destroyed (47) 235 Value Destroyed (903) 903 Prototype IDs (0) 0 Alien Tech Used (0) 0 Bonus (25) 25 TOTAL SCORE: 1563 Bonus ------- Follower Combat Kills 25 Cogmind --------- Core Integrity 0/250 Matter 267/300 Energy 250/250 System Corruption 2% Temperature Cool (0) Movement Rolling (200) Ox8 Location -10/Mines Parts ------- > --- POWER (1) -------- Ion Engine > --- PROPULSION (2) --- Wheel > --- UTILITY (2) ------ Huge Storage Unit Seismic Detector > --- WEAPON (2) ------- Autogun > --- INVENTORY (25) --- Ion Engine Light Treads Wheel Compact Wheel Compact Wheel Heat Sink Improved Heat Sink High-capacity Storage Unit Medium Battery (150) High-capacity Matter Pod (160) Seismic Detector Transport Network Coupler Improved Targeting Computer Hacking Suite Medium Laser Assault Rifle Assault Rifle Autogun Grenade Launcher Grenade Launcher Mining Laser Peak State ------------ > --- POWER ------------ Ion Engine > --- PROPULSION ------- Light Treads Wheel > --- UTILITY ---------- Heat Sink High-capacity Storage Unit > --- WEAPON ----------- Autogun Autogun > --- INVENTORY -------- Ion Engine Light Treads Aluminum Leg Aluminum Leg Aluminum Leg Wheel Wheel Compact Wheel Compact Wheel Heat Sink Heat Sink Small Storage Unit Medium Battery Structural Scanner Seismic Detector Medium Laser Small Laser Autogun Mining Laser [Rating: 11] Favorites ----------- Power Ion Engine Engine Ion Engine Propulsion Light Treads Treads Light Treads Leg Aluminum Leg Wheel Wheel Utility Seismic Detector Device Seismic Detector Storage High-capacity Storage Unit Weapon Autogun Energy Gun Medium Laser Ballistic Gun Autogun Special Weapon Mining Laser Build | -11 -10 -10 ------- Run | Yrd Mat Min Slots Evolved . | . . . Power . | . . . Propulsion . | . . . Utility . | . . . Weapon . | . . . Parts Attached 26 | 7 17 2 Power 3 | 1 2 . Engine 3 | 1 2 . Core . | . . . Reactor . | . . . Propulsion 8 | 2 4 2 Treads 2 | 2 . . Leg 2 | . 2 . Wheel 4 | . 2 2 Hover . | . . . Flight . | . . . Utility 6 | 2 4 . Device 3 | 1 2 . Storage 3 | 1 2 . Processor . | . . . Hackware . | . . . Protection . | . . . Artifact . | . . . Weapon 9 | 2 7 . Energy Gun 3 | 1 2 . Energy Cannon . | . . . Ballistic Gun 5 | 1 4 . Ballistic Cannon . | . . . Launcher . | . . . Special Weapon 1 | . 1 . Impact Weapon . | . . . Slashing Weapon . | . . . Piercing Weapon . | . . . Special Melee Weapon . | . . . Unidentified Prototypes . | . . . Parts Lost 10 | . 7 3 Power 2 | . 2 . Propulsion 3 | . 1 2 Utility . | . . . Weapon 5 | . 4 1 Highest Loss Streak 2 | . 2 2 To Critical Strikes 1 | . 1 . Average Backups 17 | 5 17 20 Power 1 | . 1 1 Propulsion 5 | 3 5 4 Utility 6 | . 6 8 Weapon 5 | 1 5 7 Tool/Special . | . . . Unused Backups 19 | . 3 16 Power 1 | . . 1 Propulsion 4 | . 1 3 Utility 9 | . 2 7 Weapon 5 | . . 5 Tool/Special . | . . . Average Slot Usage (%) 98 | . 98 100 Engine 13 | . 13 14 Treads 13 | . 13 14 Leg 1 | . 2 . Wheel 12 | . 11 14 Device 13 | . 13 14 Storage 14 | . 14 14 Energy Gun 2 | . 3 . Ballistic Gun 23 | . 22 26 Special Weapon 1 | . 1 1 Peak Build Rating 11 | 7 11 11 Average Rating 9 | 5 10 10 On Entrance 6 | . 7 11 Avg Prop Armor Cover (%) 11 | . 11 11 Naked Turns . | . . . Heaviest Build 92 | 15 92 92 Greatest Support 40 | 40 40 10 Greatest Overweight (x) 15 | . 15 9 Average Overweight (x) 5 | . 5 8 Largest Inventory Capacity 25 | 8 25 25 Average Capacity 20 | 7 21 25 Most Carried 22 | 7 21 22 Average Carried 17 | 5 17 20 Final Capacity 25 | 8 25 25 Final Carried 21 | 7 21 21 Class Distribution -------------------- 100% | Mutant Dominant Class ---------------- Mutant | -10/Materials Mutant | -10/Mines Resources | -11 -10 -10 ----------- Run | Yrd Mat Min Matter Collected 1484 | 312 815 357 Remotely . | . . . Salvage Created 1446 | 224 961 261 Parts 81 | 16 56 9 Haulers Intercepted 2 | . 2 . Recyclers Shooed 1 | 1 . . Parts Field Recycled . | . . . Retrieved Matter . | . . . Parts Self-Destructed . | . . . Prevented . | . . . Parts Restored . | . . . Kills | -11 -10 -10 ------- Run | Yrd Mat Min Combat Hostiles Destroyed 26 | . 20 6 Guns 26 | . 20 6 Classes Destroyed 9 | 3 6 . Worker 5 | 2 3 . Builder 1 | . 1 . Tunneler 7 | 5 1 1 Hauler 2 | . 2 . Recycler 2 | 1 1 . Operator 2 | . 2 . Watcher 2 | . 2 . Swarmer 8 | . 6 2 Grunt 18 | . 14 4 Best Kill Streak 4 | 3 4 3 Combat Bots Only 3 | . 3 3 Max Kills in Single Turn 1 | 1 1 1 Gunslinging . | . . . Exploded . | . . . Melee . | . . . Uniques/NPCs Destroyed . | . . . Combat | -11 -10 -10 -------- Run | Yrd Mat Min Hostile Shots Fired 122 | . 101 21 Missed 27 | . 23 4 Hits 95 | . 78 17 Projectile 95 | . 78 17 AOE 6 | . 1 5 Critical Strikes 1 | . 1 . Damage Taken 1331 | . 942 389 Core 266 | . 175 91 Absorbed by Shields . | . . . Core Remaining (%) 100 | 100 . . Volleys Fired 154 | 14 109 31 Largest 2 | 2 2 2 Hottest 165 | 70 165 100 Shots Fired 280 | 28 196 56 Gun 256 | 28 178 50 Cannon . | . . . Launcher . | . . . Special 24 | . 18 6 Kinetic 203 | 14 139 50 Thermal 77 | 14 57 6 Explosive . | . . . Electromagnetic . | . . . Robot Hit Streak 13 | 11 13 13 Robot Miss Streak 5 | 3 5 2 Penetration Max . | . . . Secondary Targets 2 | . 1 1 Max Gunslinging Chain 1 | . 1 1 Shots Hit Robots 165 | 17 112 36 Core Hits 69 | 9 50 10 Critical Kills 2 | . 1 1 Critical Parts Destroyed . | . . . Critical Strikes 4 | 1 2 1 Burn 2 | 1 1 . Destroy 2 | . 1 1 Melee Attacks . | . . . Impact . | . . . Slashing . | . . . Piercing . | . . . Sneak Attacks . | . . . Combat Hostiles . | . . . Follow-up Attacks . | . . . Damage Inflicted 2342 | 209 1574 559 Guns 2290 | 209 1522 559 Cannons . | . . . Explosions . | . . . Melee . | . . . Ramming 28 | . 28 . Kinetic 1743 | 109 1075 559 Thermal 571 | 100 471 . Explosive . | . . . Electromagnetic . | . . . Impact . | . . . Slashing . | . . . Piercing . | . . . Highest Corruption 2 | . 2 2 Average Corruption 2 | . 2 2 Corruption Purged . | . . . Corruption Blocked . | . . . Effects 19 | . 8 11 Message Errors 5 | . 2 3 Matter Fused 5 | . 3 2 Heat Flow Errors 1 | . . 1 Energy Discharges 4 | . 1 3 Data Loss (minor) 1 | . 1 . Misfires 2 | . 1 1 Weapon Failures 1 | . . 1 Overload Shots . | . . . Overflow Damage . | . . . Projectiles . | . . . Explosions . | . . . Melee . | . . . Knockbacks . | . . . Impact . | . . . Kinetic . | . . . Secondary . | . . . Self-Inflicted Damage 13 | . 13 . Shots . | . . . Rammed 1 | . 1 . Targets Rammed 2 | . 2 . Kicked 1 | . 1 . Crushed . | . . . Highest Temperature 186 | 45 68 186 Average Temperature 22 | 17 20 30 Received Heat Transfer 423 | . 333 90 Siege Activations . | . . . Martial Activations . | . . . Shielding Activations . | . . . Robots Disrupted . | . . . Combat Hostiles . | . . . Robots Corrupted . | . . . Combat Hostiles . | . . . Parts Fried . | . . . Impact Corruptions . | . . . Robots Melted . | . . . Combat Hostiles . | . . . Parts Melted 4 | 1 3 . Heat Transferred 1617 | 370 1247 . Parts Sabotaged . | . . . Parts Stolen . | . . . Parts Stripped . | . . . Power Chain Reactions . | . . . Alert | -11 -10 -10 ------- Run | Yrd Mat Min Maximum Alert Level 1 | . 1 . Low Security (%) 86 | 100 80 100 Level 1 13 | . 19 . Level 2 . | . . . Level 3 . | . . . Level 4 . | . . . Level 5 . | . . . High Security . | . . . Max Security . | . . . Peak Influence 266 | 15 266 90 Initial 40 | . . 40 Average 110 | 1 143 31 Influence Increases 1011 | 40 770 201 Destroy 0b10 Robot/C 540 | . 400 140 Destroy 0b10 Robot/NC 105 | 40 60 5 Destroy Leader 108 | . 88 20 Allied During Kill 3 | . . 3 Successful Hack 25 | . 25 . Select Force Hacks 60 | . 60 . Disable Machine 30 | . 30 . Destroy Structure 20 | . 17 3 Partial Spotted 15 | . 15 . Lose Combat Pursuer 105 | . 75 30 Influence Decreases 1006 | 40 664 302 Entered New Map 66 | . . 66 Time Decay 830 | 40 594 196 Lost Part 90 | . 70 20 Lost Ally 20 | . . 20 Squads Dispatched 4 | . 4 . Investigation 2 | . 2 . Extermination . | . . . Reinforcement 2 | . 2 . Assault . | . . . Garrison . | . . . Intercept . | . . . Searches Triggered . | . . . Construction Impeded . | . . . Haulers Reinforced . | . . . Active Scanning Responses . | . . . Cargo Convoy Interrupts . | . . . Stealth | -11 -10 -10 --------- Run | Yrd Mat Min Distress Signals 4 | . 4 . Communications Jammed . | . . . Distress Signals . | . . . Times Spotted 44 | . 35 9 Peak Tracking Total 6 | . 6 3 Tactical Retreats 5 | . 3 2 Traps | -11 -10 -10 ------- Run | Yrd Mat Min Traps Triggered 4 | . 4 . Indirectly . | . . . Trap Hack Attempts . | . . . Triggered . | . . . Disarmed . | . . . Reprogrammed . | . . . Reused . | . . . Traps Extracted . | . . . Installed . | . . . Triggered . | . . . Machines | -11 -10 -10 ---------- Run | Yrd Mat Min Machines Disabled 2 | . 2 . Max in Single Turn 1 | . 1 . Machines Repaired . | . . . Machines Dismantled . | . . . Machines Sabotaged . | . . . Overloaded Fab Kills . | . . . Hacking | -11 -10 -10 --------- Run | Yrd Mat Min Machines Accessed 8 | . 7 1 Terminals 6 | . 5 1 Fabricators . | . . . Repair Stations . | . . . Recycling Units 2 | . 2 . Scanalyzers . | . . . Garrison Access . | . . . Total Hacks 21 | . 18 3 Successful 11 | . 11 . Failed 9 | . 6 3 Catastrophic 1 | . . 1 Database Lockouts 1 | . 1 . Manual 20 | . 17 3 Terminals 19 | . 16 3 Fabricators . | . . . Repair Stations . | . . . Recycling Units 2 | . 2 . Scanalyzers . | . . . Garrison Access . | . . . Terminal Hacks 2 | . 2 . Robot Analysis 1 | . 1 . Locate Traps 1 | . 1 . Fabricator Hacks . | . . . Repair Station Hacks . | . . . Recycling Unit Hacks . | . . . Scanalyzer . | . . . Garrison Access Hacks . | . . . Unauthorized Hacks 9 | . 9 . Terminals 7 | . 7 . Botnet 2 | . 2 . Skim 5 | . 5 . Fabricators . | . . . Repair Stations . | . . . Recycling Units 2 | . 2 . Tunnel 2 | . 2 . Scanalyzers . | . . . Garrison Access . | . . . Data Cores Recovered . | . . . Used . | . . . Hacking Detections 6 | . 5 1 Full Trace Events . | . . . Feedback Events . | . . . Feedback Blocked . | . . . Robot Schematics Acquired . | . . . Robots Built . | . . . Authchips . | . . . Time . | . . . Total Robot Build Rating . | . . . Part Schematics Acquired . | . . . Parts Built . | . . . Authchips . | . . . Time . | . . . Total Part Build Rating . | . . . Part Studies Acquired . | . . . Parts Repaired . | . . . Time . | . . . Parts Recycled . | . . . Recycled Matter . | . . . Retrieved Matter . | . . . Retrieved Components . | . . . Parts Scanalyzed . | . . . Part Schematics Acquired . | . . . Parts Damaged . | . . . Bothacking | -11 -10 -10 ------------ Run | Yrd Mat Min Used RIF Installer . | . . . Robots Hacked . | . . . Non-combat . | . . . Combat . | . . . Robot Hacks Applied . | . . . Relay Couplers Released . | . . . Fabnet Peak Effective % . | . . . Robots Rewired . | . . . Allies Hacked . | . . . Hacks Repelled . | . . . Allies | -11 -10 -10 -------- Run | Yrd Mat Min Total Allies 1 | . . 1 Largest Group 1 | . . 1 Highest-Rated Group 31 | . . 31 Highest-Rated Ally 31 | . . 31 Total Orders . | . . . Ally Attacks 13 | . . 13 Total Damage 210 | . . 210 Kills 1 | . . 1 Allies Corrupted . | . . . Allies Melted . | . . . Intel | -11 -10 -10 ------- Run | Yrd Mat Min Active Infowar (turns) 2701 | 26 2004 671 Seismic 2701 | 26 2004 671 Robot Analysis Total 1 | . 1 . Derelict Logs Recovered 1 | . . 1 Drone Launches . | . . . Drone Recoveries . | . . . Exploration | -11 -10 -10 ------------- Run | Yrd Mat Min Turns Passed 3326 | 249 2406 671 Spaces Moved 1209 | 114 835 260 Core 3 | 2 1 . Treads 152 | 112 40 . Legs 50 | . 50 . Wheels 1004 | . 744 260 Hover . | . . . Flight . | . . . Fastest Speed 50 | 50 140 200 Average Speed 180 | 158 172 213 Slowest Speed 800 | 160 800 215 Overloaded Moves . | . . . Propulsion Burnouts . | . . . Robots Hopped . | . . . Potential Cave-ins . | . . . Cave-ins Triggered . | . . . Exploration Rate (%) 59 | 9 97 71 Regions Visited 2 Branch Regions 1 Pre-discovered Areas 4 | . 4 . Known Exits Taken 1 | . 1 . Unknown Exits Taken 1 | 1 . . Scrap Searched 1 | . . 1 Spaces Dug 16 | . 11 5 Terrain Destroyed 22 | . 16 6 Melee . | . . . Projectile 22 | . 16 6 AOE . | . . . Terrain Rammed . | . . . Walls Destroyed . | . . . Machines Disabled . | . . . Actions | -11 -10 -10 --------- Run | Yrd Mat Min Total 2052 | 151 1585 316 Wait 594 | 10 566 18 Move 1207 | 113 834 260 Hop . | . . . Pick Up 32 | 7 24 1 Fast Attach 17 | 7 10 . Attach 8 | . 7 1 Detach 4 | . 4 . Swap 24 | . 20 4 Drop 10 | . 9 1 Fire 154 | 14 109 31 Melee . | . . . Ram 1 | . 1 . Kick 1 | . 1 . Crush . | . . . Escape Stasis . | . . . Rewire . | . . . Trap . | . . . Miscellaneous . | . . . Route ------- -11/Scrapyard -10/Materials (discovered 6 exits: [*Mat x3] / *Min x2 / [*Sub]) -10/Mines (discovered 3 exits: [*Mat] / [*Exi] / [*Sub]) History --------- Turn | Location | Event 15 | -11/Scrapyard | Discovered new exit (range 15) 250 | -11/Scrapyard | Entered Materials 321 | -10/Materials | Build established: Mutant 472 | -10/Materials | Discovered new exit (range 13) 958 | -10/Materials | Discovered new exit (range 9) 1047 | -10/Materials | Core integrity fell below 50% 1202 | -10/Materials | Discovered new exit (range 12) 1434 | -10/Materials | Discovered new exit (range 10) 1489 | -10/Materials | Discovered new exit (range 10) 1723 | -10/Materials | Central database locked down 1891 | -10/Materials | Discovered new exit (range 16) 2357 | -10/Materials | Learned location of 3 exits from Materials 2499 | -10/Materials | Identified exit to Mines 2525 | -10/Materials | Learned Storage security intel 2559 | -10/Materials | Learned location of Storage (-9) 2602 | -10/Materials | Learned location of Mines (-10) 2656 | -10/Materials | Entered Mines 2721 | -10/Mines | Deemed a non-threat by the Exiles lab entrance 2723 | -10/Mines | Discovered new exit (range 5) 2843 | -10/Mines | Discovered new exit (range 7) 3051 | -10/Mines | Learned Materials terminal intel 3087 | -10/Mines | Core integrity fell below 20% 3114 | -10/Mines | Escorted by a lone wolf Derelict 3197 | -10/Mines | Discovered new exit (range 13) 3307 | -10/Mines | Assembled infested the area 3327 | -10/Mines | Destroyed by D-53 Grenadier with Mini Grenade Launcher Last Messages --------------- 03213_ G-47 Trooper destroyed. 03222_ Acquired 55 matter. 03235_ Acquired 31 matter. 03240_ Connecting with Terminal... 03253_ R-06 Scavenger collects Sml. Laser. 03257_ R-06 Scavenger collects Particle Gun. 03263_ K-01 Serf collects debris. 03283_ U-05 Engineer builds a Wall. 03289_ System corrupted: Matter fused (-5). 03307_ ALERT: Infestation in the mines, dispatching Demolisher response squad. 03322_ C-45 Heavy ARC bursts open, deploying its payload. 03322_ D-53 Grenadier unfolds itself. 03323_ Wheel destroyed. 03323_ U-05 Engineer lays Concrete. 03325_ M1-ORR(g): "Mission, incomplete...*fzzt*" 03325_ M1-ORR(g) destroyed. 03325_ Autogun destroyed. 03325_ U-05 Engineer lays Concrete. Map ----- +----------------------------------------------------+ | #????# #??????# #????? | | ##?### #??????# #????? | | ### ############# #??????# #????? | | ##???????????# ##?????# #????? | | ###???????????## #?????#!#????? | | # ##?????????????# #?????# #????? | | ## #???## ####### ##?????#=#????? | | ?## #???# ! / ######## #????? | | ??## #?# ####### [ #????? | | ???## ### ??????????## ###### ####????? | | ????# #?????????????# ##????# #???????? | | ????# ##????????????## #??#### #####???? | | ???? #????????????## % #??# #???? | | ???? #????????????# #??# #???? | | ??? ????????????# #??# """#???? | | ??? ????????????## d #??# """#???? | | ??## ????????????## d ##?# """#???? | | ???## #?????????????## #?# #???? | | ????#####?????????????## ### """#???? | | ?????????????????????## # # """#???? | | ???????????????????### u # # """#???? | | ???????????????????# # " #???? | | ???????????????????# ##### #######???? | | ??????????????????## ##??# #?????????? | | ??????????????????# % #### #?????????? | | ??????????????????# @ # #?????????? | | ??????????????????## [ ##????????? | | ???????????????????# # < T#????????? | | ???????????????????# ## * ##????????? | | ???????????????????## # ### #?????????? | | ????????????????????### #?#######?????????? | | ??????????????????????# #?????????????????? | | ??????????????????????# #?????????????????? | | ??????????????????????# #?????????????????? | | ?????????????????????? #?????????????????? | | ??????????????????????####?????????????????? | | ???????????????????????????????????????????? | | ???????????????????????????????????????????? | | ???????????????????????????????????????????? | | ???????????????????????????????????????????? | | ???????????????????????????????????????????? | | ???????????????????????????????????????????? | | ???????????????????????????????????????????? | | ???????????????????????????????????????????? | | ???????????????????????????????????????????? | | ???????????????????????????????????????????? | | ???????????????????????????????????????????? | | ???????????????????????????????????????????? | | ???????????????????????????????????????????? | | ???????????????????????????????????????????? | +----------------------------------------------------+ Best States ------------- Heat Dissipation 35 Energy Generation 10 Energy Capacity 250 Matter Stores 300 Matter Capacity 300 Sight Range 16 Terrain Scan Density 10 Evasion (%) 40 Recoil Reduction 2 Item Schematics ----------------- None Robot Schematics ------------------ None Fabricated ------------ Nothing Repaired ---------- Nothing Studied --------- None Alien Tech Used ----------------- None Achievements -------------- None Challenges ------------ None Game ------ Seed PulsarGunBasin Manual? 0 Play Time 00:17:56 Cumulative 195.4 hours Start 2026.02.12 @ 23:32:43 End 2026.02.12 @ 23:49:12 Sessions 1 Manual Loads 0 Difficulty Rogue Special Mode None Game No. 95 Rogue 95 Adventurer 0 Explorer 0 Win Type - Total 5 Types 4/0/0/1/0/0/0/0/0/0 Lore% 60 Gallery% 60 Achievement% 49 Wizard Run 0 Options --------- Layout 1 ASCII 0 Keyboard 1 Movement Numpad Keybinds 0 Fullscreen 1 Font 24/Smallcaps Map View 50x35 Zoom Use 0% Tactical HUD 1 Map Filters NONE Filters NONE Steam 1 RUN: 89e6f06a-2fb0-4a99-b379-0350b64a30b3